bitfinex-derivatives/quotes_ETHF0:USTF0_20241229
["timestamp","ask_amount","ask_price","bid_price","bid_amount"]
[1735449550568,1.17181,3391.0,3390.9,1.79877529]
[1735449552077,1.17181,3391.0,3390.9,1.50335529]
[1735449553977,1.17181,3391.0,3390.9,1.79877529]
[1735449554776,0.8764,3391.0,3390.9,1.79877529]
[1735449555177,1.17181,3391.0,3390.9,1.79877529]
[1735449555874,0.8764,3391.0,3390.9,1.79877529]
[1735449556077,1.17181,3391.0,3390.9,1.79877529]
[1735449556884,1.17181,3391.0,3390.9,1.50335529]
[1735449557474,0.73521,3391.0,3390.9,1.79877529]
[1735449557872,0.457,3391.3,3391.2,0.29539]
[1735449558082,0.457,3391.3,3391.2,1.34294529]
[1735449559577,0.75238,3391.3,3391.2,1.34294529]
[1735449562380,0.457,3391.3,3391.2,1.34294529]
[1735449564084,0.75238,3391.3,3391.2,1.34294529]
[1735449566178,0.457,3391.3,3391.2,1.34294529]
[1735449569483,0.4584,3391.4,3391.3,0.29538]
[1735449569987,0.4584,3391.4,3391.3,0.74018]
[1735449570986,5.79440062,3391.7,3391.6,0.29536]
[1735449571285,5.79440062,3391.7,3391.6,1.34291529]
[1735449572689,3.2078,3391.7,3391.6,1.34291529]
[1735449574683,0.451,3391.8,3391.6,1.04755529]
[1735449574891,3.2078,3391.7,3391.6,1.34291529]
[1735449576895,0.451,3391.8,3391.7,0.29535]
[1735449577092,0.74634,3391.8,3391.7,0.29535]
[1735449577300,0.451,3391.8,3391.7,0.29535]
[1735449580399,0.451,3391.8,3391.7,0.72565]
[1735449585598,0.451,3391.8,3391.7,0.29535]
[1735449588206,0.451,3391.8,3391.6,4.25535529]
[1735449588405,0.29535,3391.7,3391.6,4.55070529]
[1735449588907,0.451,3391.8,3391.4,4.63976812]
[1735449589100,0.29537,3391.5,3391.4,5.68732341]
[1735449589400,0.29537,3391.5,3391.4,4.63976812]
[1735449589906,0.29537,3391.5,3391.1,1.11586812]
[1735449589907,0.29539,3391.2,3391.1,1.11586812]
[1735449591008,0.29543,3390.8,3390.7,1.04755529]
[1735449592401,0.29543,3390.8,3390.6,0.29544]
[1735449593308,0.29544,3390.7,3390.6,0.29544]
[1735449593909,0.29544,3390.7,3390.5,0.29545]
[1735449594305,0.29546,3390.5,3390.4,0.29546]
[1735449594812,0.29545,3390.6,3390.3,0.29547]
[1735449595001,0.4605,3390.9,3390.2,3.25286666]
[1735449595203,0.29545,3390.6,3390.2,3.25286666]
[1735449595403,0.29545,3390.6,3390.4,0.29546]
[1735449595905,0.29545,3390.6,3390.2,3.25286666]
[1735449595906,0.29545,3390.6,3390.5,0.29545]
[1735449609114,3.6683,3390.9,3390.2,3.25286666]
[1735449609318,3.6683,3390.9,3390.1,3.2078]
[1735449609319,0.29548,3390.2,3390.1,3.2078]
[1735449611410,0.29548,3390.2,3390.1,3.50329]
[1735449612519,0.71986,3390.5,3390.4,0.29546]
[1735449612719,0.29547,3390.4,3390.3,0.29546]
[1735449614815,0.4244,3390.5,3390.2,1.5096919]
[1735449615015,0.29547,3390.3,3390.2,0.75897]
[1735449615817,3.50327,3390.3,3390.2,0.75897]
[1735449616224,0.29547,3390.3,3390.2,0.75897]
[1735449616422,0.29549,3390.1,3390.0,0.29549]
[1735449617424,0.73159,3390.1,3390.0,0.29549]
[1735449620824,0.2955,3390.0,3389.9,0.2955]
[1735449621021,0.4361,3390.1,3390.0,0.2955]
[1735449621022,0.7316,3390.1,3390.0,0.2955]
[1735449621819,0.2955,3390.0,3389.9,0.2955]
[1735449622025,0.73159,3390.1,3390.0,0.2955]
[1735449633147,0.4361,3390.1,3389.8,1.9103919]
[1735449633447,0.29551,3389.9,3389.8,1.1597]
[1735449635349,0.2955,3390.0,3389.9,0.2955]
[1735449637647,0.4361,3390.1,3389.8,0.8642]
[1735449637948,0.29551,3389.9,3389.8,1.15971]
[1735449638152,0.29551,3389.9,3389.8,0.8642]
[1735449638342,0.29551,3389.8,3389.7,0.4394]
[1735449642349,0.29551,3389.8,3389.7,0.73492]
[1735449660266,4.93644092,3389.8,3389.7,0.73492]
[1735449663961,4.93644092,3389.8,3389.7,0.4394]
[1735449664161,4.93644092,3389.8,3389.7,0.73492]
[1735449674073,4.64093092,3389.8,3389.6,0.29553]
[1735449674276,0.71922,3389.7,3389.6,0.29553]
[1735449674977,5.36015092,3389.7,3389.6,0.29553]
[1735449684388,0.71922,3389.7,3389.6,0.29553]
[1735449685488,0.71922,3389.7,3389.6,6.14971203]
[1735449686686,5.37272227,3389.7,3389.6,6.14971203]
[1735449687886,0.71922,3389.7,3389.6,6.14971203]
[1735449695279,6.1045786,3389.8,3389.7,0.29552]
[1735449696491,0.29552,3389.8,3389.7,0.29552]
[1735449699786,5.8090586,3389.9,3389.6,6.95965218]
[1735449699985,0.29552,3389.7,3389.6,7.25518218]
[1735449701091,0.29552,3389.7,3389.6,6.14994979]
[1735449706493,4.94980375,3389.7,3389.6,13.10960197]
[1735449707594,4.94980375,3389.7,3389.6,6.14994979]
[1735449708797,0.29552,3389.7,3389.6,6.14994979]
[1735449710501,0.29552,3389.7,3389.6,5.85441979]
[1735449712200,0.29552,3389.7,3389.6,4.654835]
[1735449717210,0.29552,3389.7,3389.6,4.950365]
[1735449722411,0.29552,3389.7,3389.6,4.654835]
[1735449722812,0.29552,3389.7,3389.6,10.50905675]
[1735449723716,0.29552,3389.7,3389.6,4.654835]
[1735449724216,0.29552,3389.7,3389.6,4.950365]
[1735449725717,0.29552,3389.7,3389.6,0.29553]
[1735449728118,0.29553,3389.6,3389.5,8.12479218]
[1735449729613,0.29553,3389.6,3389.5,5.81961773]
[1735449729815,0.29553,3389.6,3389.5,5.52407773]
[1735449730010,0.29553,3389.6,3389.5,5.81961773]
[1735449730721,1.3417219,3389.6,3389.5,5.81961773]
[1735449736426,1.3417219,3389.6,3389.5,7.01650818]
[1735449736619,5.99513804,3389.6,3389.5,7.01650818]
[1735449737318,5.99513804,3389.6,3389.5,1.16514]
[1735449737921,5.99513804,3389.6,3389.5,0.8696]
[1735449738126,0.29554,3389.5,3389.4,6.95965218]
[1735449738325,1.21014,3389.5,3389.4,6.95965218]
[1735449738525,0.29555,3389.4,3389.3,6.95965218]
[1735449738722,1.3417419,3389.4,3389.3,6.95965218]
[1735449738923,1.7971419,3389.4,3389.3,6.95965218]
[1735449740126,1.7971419,3389.4,3389.2,3.2078]
[1735449740127,0.29556,3389.3,3389.2,3.2078]
[1735449740931,0.29556,3389.3,3389.2,3.96557]
[1735449741126,4.94671355,3389.3,3389.2,3.96557]
[1735449743330,4.94671355,3389.3,3389.2,0.75777]
[1735449744033,0.29556,3389.3,3389.2,0.75777]
[1735449744229,4.65115355,3389.4,3389.3,0.29556]
[1735449744530,4.65115355,3389.4,3389.3,1.3417519]
[1735449745327,7.85895355,3389.7,3389.6,0.29553]
[1735449745736,8.15447355,3389.7,3389.6,0.29553]
[1735449748031,4.94667355,3389.7,3389.6,0.29553]
[1735449752238,4.94667355,3389.7,3389.5,0.29553]
[1735449752438,4.94667355,3389.7,3389.6,0.73933]
[1735449752938,4.94667355,3389.7,3389.6,0.4438]
[1735449755033,4.65115355,3389.7,3389.4,5.52757961]
[1735449755235,1.3417319,3389.5,3389.4,4.64877961]
[1735449755639,0.29555,3389.4,3389.3,4.64877961]
[1735449755838,2.2664419,3389.4,3389.3,4.64877961]
[1735449757041,0.29556,3389.3,3389.2,3.2078]
[1735449757637,0.76306,3389.3,3389.2,3.2078]
[1735449759342,5.41274476,3389.3,3389.2,3.2078]
[1735449761037,0.29557,3389.1,3389.0,1.17958]
[1735449761544,1.3417619,3389.1,3389.0,0.884]
[1735449761739,5.11718476,3389.3,3389.2,0.29557]
[1735449761946,4.64968476,3389.3,3389.2,1.3417619]
[1735449763743,6.1045986,3389.5,3389.4,0.29555]
[1735449763744,0.29554,3389.5,3389.4,0.29555]
[1735449764941,0.29555,3389.5,3389.3,0.29555]
[1735449765152,0.29555,3389.5,3389.4,4.64570662]
[1735449765351,0.29555,3389.5,3389.4,4.94125662]
[1735449768052,0.29555,3389.5,3389.4,5.39095662]
[1735449768455,0.29554,3389.5,3389.4,5.39094662]
[1735449778765,1.3417319,3389.6,3389.5,0.29554]
[1735449779158,1.3417319,3389.6,3389.5,0.74434]
[1735449793166,1.0461919,3389.6,3389.4,5.39094662]
[1735449793365,0.29554,3389.5,3389.4,5.39094662]
[1735449794868,0.29554,3389.5,3389.4,0.74524]
[1735449798776,1.5011919,3389.6,3389.4,0.4497]
[1735449798970,1.7967319,3389.6,3389.5,0.29554]
[1735449802376,6.44641666,3389.6,3389.5,0.29554]
[1735449805573,0.29555,3389.4,3389.3,4.94125662]
[1735449805777,0.29555,3389.4,3389.3,0.29555]
[1735449806682,4.64968476,3389.5,3389.3,4.6475833]
[1735449806882,4.64968476,3389.5,3389.4,0.29555]
[1735449807083,4.94522476,3389.5,3389.4,0.29555]
[1735449807381,4.64968476,3389.5,3389.4,0.29555]
[1735449807576,4.64968476,3389.5,3389.4,1.18255]
[1735449808376,4.64968476,3389.8,3389.7,0.29552]
[1735449808576,4.94519476,3389.8,3389.7,0.29552]
[1735449809179,5.99139666,3389.8,3389.7,0.29552]
[1735449809378,1.3417119,3389.8,3389.7,4.94351322]
[1735449810273,1.3417119,3389.8,3389.7,0.29552]
[1735449812084,0.29552,3389.7,3389.6,5.37342322]
[1735449813880,4.9484266,3389.7,3389.6,5.37342322]
[1735449815387,4.6529066,3389.7,3389.6,5.37342322]
[1735449816590,4.6529066,3389.8,3389.6,6.27548238]
[1735449816887,4.6529066,3389.8,3389.7,0.29552]
[1735449817591,4.6529066,3389.8,3389.7,4.94273197]
[1735449822489,4.9483866,3390.2,3390.1,0.29549]
[1735449823287,4.6529066,3390.2,3390.1,0.29549]
[1735449823595,5.9945785,3390.3,3390.2,0.29548]
[1735449824487,5.9945785,3390.3,3390.2,0.73778]
[1735449824695,5.9945785,3390.3,3390.2,1.18938]
[1735449825189,4.6529066,3390.3,3390.2,1.18938]
[1735449825491,4.6529066,3390.3,3390.2,2.2355719]
[1735449827190,4.2539919,3390.9,3390.8,0.29543]
[1735449828494,0.29541,3391.0,3390.8,0.29543]
[1735449828684,1.3416019,3391.0,3390.8,0.29543]
[1735449828890,1.0461919,3391.0,3390.8,0.29543]
[1735449829090,0.29542,3390.9,3390.8,0.29543]
[1735449829497,1.3416119,3391.0,3390.8,0.29543]
[1735449829696,0.29542,3390.9,3390.8,0.29543]
[1735449829893,0.29542,3390.9,3390.7,1.21063]
[1735449830087,0.4331,3390.8,3390.7,1.21063]
[1735449832995,0.72853,3390.8,3390.7,1.21063]
[1735449833789,1.7747219,3390.8,3390.7,1.21063]
[1735449837293,1.4792919,3390.8,3390.4,0.29546]
[1735449837490,0.29545,3390.5,3390.4,0.29546]
[1735449838102,0.894,3390.7,3390.3,0.8894]
[1735449838300,0.29545,3390.6,3390.5,0.29545]
[1735449840703,0.29546,3390.4,3390.3,1.18487]
[1735449841001,0.29546,3390.4,3390.3,0.72287]
[1735449842505,0.29546,3390.4,3390.3,0.29547]
[1735449845105,0.894,3390.7,3390.1,1.5067919]
[1735449845305,0.29545,3390.5,3390.4,0.29545]
[1735449845699,0.29545,3390.5,3390.4,0.75435]
[1735449853013,0.29545,3390.6,3390.5,0.29544]
[1735449858320,1.4736919,3390.7,3390.1,4.7145919]
[1735449858523,0.29548,3390.3,3390.2,0.72987]
[1735449859515,0.29547,3390.4,3390.3,0.29546]
[1735449860215,0.29546,3390.5,3390.4,0.29546]
[1735449866518,0.29546,3390.5,3390.4,0.74956]
[1735449874126,4.6529066,3390.6,3390.5,0.29545]
[1735449874329,4.6529066,3390.6,3390.5,0.73225]
[1735449874527,4.6529066,3390.6,3390.5,1.7784419]
[1735449875635,4.6529066,3390.8,3390.7,0.29544]
[1735449876732,8.1561266,3390.9,3390.8,0.29543]
[1735449876932,0.29543,3390.8,3390.7,0.29543]
[1735449879430,7.8607066,3390.9,3390.8,0.29543]
[1735449879732,7.8607066,3390.9,3390.8,3.93543]
[1735449879733,4.6529066,3390.9,3390.8,3.93543]
[1735449880133,2.5316066,3390.9,3390.8,3.93543]
[1735449881630,3.2078,3391.5,3391.4,0.29537]
[1735449882236,3.2078,3391.5,3391.4,1.18607]
[1735449885241,0.72325,3391.7,3391.4,0.8907]
[1735449885638,0.29533,3391.9,3391.7,0.29534]
[1735449885840,0.29533,3391.9,3391.8,0.4447]
[1735449890934,1.0461919,3391.9,3391.6,0.29535]
[1735449891142,0.29535,3391.8,3391.6,0.75195]
[1735449891447,0.29535,3391.7,3391.6,0.4566]
[1735449891650,3.50315,3391.7,3391.6,0.4566]
[1735449891946,0.29537,3391.5,3391.3,0.29538]
[1735449892145,0.4331,3391.4,3391.3,0.29538]
[1735449893342,0.72847,3391.4,3391.3,0.29538]
[1735449894039,0.4331,3391.4,3391.3,0.29538]
[1735449896144,1.15497,3391.4,3391.3,0.29538]
[1735449900946,0.8596,3391.4,3390.9,3.2078]
[1735449901149,1.0461919,3391.3,3390.9,3.2078]
[1735449901448,0.29541,3391.1,3391.0,0.29541]
[1735449902245,0.29541,3391.0,3390.9,3.50321]
[1735449902445,1.16581,3391.0,3390.9,3.50321]
[1735449904046,0.8704,3391.0,3390.9,3.50321]
[1735449905046,1.16581,3391.0,3390.9,3.50321]
[1735449905246,0.8704,3391.0,3390.9,3.50321]
[1735449905756,0.8704,3391.0,3390.9,4.5494019]
[1735449905949,0.2954,3391.2,3390.9,4.2539919]
[1735449906151,0.4265,3391.4,3390.9,4.2539919]
[1735449906152,0.8945,3391.3,3390.9,4.2539919]
[1735449906449,0.4619,3391.3,3391.2,0.29539]
[1735449906752,0.29537,3391.5,3391.4,0.29537]
[1735449911152,0.29534,3391.9,3391.8,0.29533]
[1735449914262,1.0461919,3392.0,3391.6,0.4571]
[1735449914553,0.29534,3391.8,3391.7,0.74454]
[1735449914764,0.29534,3391.8,3391.7,0.4492]
[1735449915561,0.29535,3391.7,3391.6,0.75245]
[1735449915759,0.75435,3391.7,3391.6,0.75245]
[1735449917551,0.75435,3391.7,3391.6,0.4571]
[1735449922065,0.29536,3391.6,3391.5,0.29537]
[1735449923556,0.29536,3391.6,3391.5,0.74317]
[1735449925067,0.459,3391.7,3391.5,0.4478]
[1735449925372,0.29535,3391.7,3391.6,0.29536]
[1735449931157,3.2078,3391.9,3391.6,1.0461919]
[1735449931467,3.2078,3391.9,3391.8,0.29534]
[1735449932369,0.74462,3392.1,3391.7,4.62900231]
[1735449932567,0.74462,3392.1,3392.0,0.29532]
[1735449934569,0.4493,3392.1,3392.0,0.29532]
[1735449937074,0.74461,3392.1,3392.0,0.29532]
[1735449937270,0.4268,3392.3,3392.2,0.2953]
[1735449937469,9.4625586,3392.5,3392.4,0.29529]
[1735449937670,3.6535,3392.5,3392.4,0.29529]
[1735449938070,3.6535,3392.5,3392.4,0.74939]
[1735449938978,3.2078,3392.5,3392.4,0.74939]
[1735449940369,3.2078,3392.5,3392.4,1.7955819]
[1735449942273,0.29527,3392.7,3392.4,1.5002919]
[1735449942474,0.29527,3392.7,3392.5,0.29528]
[1735449943774,0.9258,3392.8,3392.5,0.29528]
[1735449943775,0.29527,3392.6,3392.5,0.29528]
[1735449945075,0.29527,3392.6,3392.4,1.5002919]
[1735449945270,0.29527,3392.6,3392.4,1.7955719]
[1735449945879,0.29528,3392.5,3392.4,1.7955719]
[1735449946482,1.0461919,3392.6,3392.3,0.4257]
[1735449946683,0.29529,3392.4,3392.3,0.4257]
[1735449946980,0.2953,3392.3,3392.1,0.29531]
[1735449947170,1.222,3392.3,3392.1,0.74811]
[1735449947575,1.222,3392.3,3392.2,0.2953]
[1735449947776,0.9267,3392.3,3392.2,0.2953]
[1735449947978,0.9267,3392.3,3392.2,1.3414919]
[1735449949878,0.4646,3392.3,3392.2,1.3414919]
[1735449950078,0.73218,3392.5,3392.2,1.0461919]
[1735449950388,0.73218,3392.5,3392.4,0.29529]
[1735449951083,1.16378,3392.5,3392.4,0.29529]
[1735449951581,0.467,3392.7,3392.6,0.29527]
[1735449951582,0.76227,3392.7,3392.6,0.29527]
[1735449951983,0.467,3392.7,3392.6,0.29527]
[1735449952677,0.76226,3392.7,3392.6,0.29527]
[1735449953787,0.467,3392.7,3392.6,0.29527]
[1735449954678,0.76226,3392.7,3392.6,0.29527]
[1735449955586,0.467,3392.7,3392.6,0.29527]
[1735449957279,0.467,3392.7,3392.5,0.8877]
[1735449957280,0.29527,3392.6,3392.5,1.18298]
[1735449957482,0.4447,3392.6,3392.5,1.18298]
[1735449958388,0.73997,3392.6,3392.5,0.75448]
[1735449958786,0.4447,3392.6,3392.5,0.75448]
[1735449962684,0.76226,3392.7,3392.5,0.75448]
[1735449962685,0.76226,3392.7,3392.6,0.29527]
[1735449962887,0.467,3392.7,3392.6,0.29527]
[1735449963191,0.467,3392.7,3392.6,1.3414619]
[1735449968095,0.29526,3392.8,3392.7,0.29526]
[1735449968296,0.29526,3392.8,3392.7,0.72376]
[1735449972595,0.29526,3392.8,3392.7,0.4285]
[1735449973891,0.29526,3392.7,3392.6,1.3414519]
[1735449974093,0.75826,3392.7,3392.6,1.3414519]
[1735449983805,0.75826,3392.7,3392.6,1.0461919]
[1735449984404,0.29527,3392.6,3392.5,4.62900231]
[1735449984704,0.71807,3392.6,3392.5,4.62900231]
[1735449989515,5.35159155,3392.6,3392.5,4.62900231]
[1735449990812,0.29528,3392.5,3392.4,4.62900231]
[1735449992311,0.29528,3392.5,3392.4,4.92429231]
[1735449996220,5.35159155,3392.6,3392.5,0.29528]
[1735450001023,0.71807,3392.6,3392.5,0.29528]
[1735450003423,5.36594136,3392.6,3392.5,0.29528]
[1735450005024,5.07067136,3392.6,3392.5,0.29528]
[1735450005820,5.36594136,3392.6,3392.5,0.29528]
[1735450006923,5.07067136,3392.6,3392.5,0.29528]
[1735450007123,4.64787136,3392.6,3392.5,0.74058]
[1735450008123,4.64787136,3392.7,3392.5,0.4453]
[1735450008326,4.64787136,3392.7,3392.6,0.29527]
[1735450008527,4.64787136,3392.7,3392.6,0.72407]
[1735450011921,4.94313136,3392.7,3392.6,0.4288]
[1735450012127,5.81813136,3392.7,3392.6,0.4288]
[1735450012927,1.17026,3392.7,3392.6,0.4288]
[1735450013132,1.17026,3392.7,3392.6,0.72407]
[1735450018839,1.17026,3392.7,3392.6,0.4288]
[1735450019840,1.17026,3392.7,3392.6,0.72407]
[1735450020038,6.9793186,3392.7,3392.6,0.72407]
[1735450020730,0.29528,3392.5,3392.4,4.92428231]
[1735450021130,0.29528,3392.5,3392.4,4.62900231]
[1735450022333,0.29529,3392.4,3392.3,0.29529]
[1735450023536,4.94458655,3392.4,3392.3,0.29529]
[1735450024630,4.94458655,3392.4,3392.3,4.92429231]
[1735450025533,4.94458655,3392.4,3392.3,0.29529]
[1735450027339,0.2953,3392.3,3392.2,4.62900231]
[1735450027536,1.1745,3392.3,3392.2,4.62900231]
[1735450028540,0.29531,3392.1,3392.0,7.83680231]
[1735450029043,0.29531,3392.1,3392.0,8.13212231]
[1735450029542,4.64838043,3392.1,3392.0,3.93372]
[1735450029744,4.64838043,3392.1,3392.0,4.36102]
[1735450029933,4.64838043,3392.1,3392.0,1.15322]
[1735450030635,5.40729043,3392.2,3392.0,5.48690231]
[1735450030836,5.40729043,3392.2,3392.1,0.29531]
[1735450031945,0.75891,3392.2,3392.1,0.29531]
[1735450034649,0.29531,3392.1,3392.0,0.72592]
[1735450040849,0.29531,3392.1,3392.0,0.4306]
[1735450041052,0.4636,3392.2,3391.9,1.0461919]
[1735450041242,0.29533,3391.9,3391.8,5.08740231]
[1735450042145,0.29533,3391.9,3391.8,0.4584]
[1735450042351,0.29533,3391.9,3391.8,0.75374]
[1735450045652,0.29533,3392.0,3391.9,0.29532]
[1735450045849,0.29533,3392.0,3391.9,1.3415119]
[1735450046456,0.29533,3391.9,3391.8,4.62900231]
[1735450046758,2.2386219,3391.9,3391.8,4.62900231]
[1735450046958,0.29534,3391.8,3391.7,7.83680231]
[1735450047149,0.72154,3391.8,3391.7,7.83680231]
[1735450047756,0.72154,3391.8,3391.7,8.13215231]
[1735450048155,0.72154,3391.8,3391.7,3.50315]
[1735450050859,0.72154,3391.8,3391.7,0.29535]
[1735450052151,0.72154,3391.8,3391.5,0.4474]
[1735450052152,3.92934,3391.8,3391.5,0.4474]
[1735450052358,0.29535,3391.7,3391.6,0.29535]
[1735450053259,3.92935,3391.8,3391.7,0.29535]
[1735450053465,0.29535,3391.7,3391.6,0.29535]
[1735450054065,3.634,3391.8,3391.5,0.4474]
[1735450054261,0.29536,3391.6,3391.5,0.74276]
[1735450054462,3.634,3391.8,3391.5,1.4935919]
[1735450054668,0.29535,3391.7,3391.6,0.29535]
[1735450060970,0.29536,3391.6,3391.5,1.7889519]
[1735450064265,0.29536,3391.6,3391.5,1.4935919]
[1735450067968,0.29536,3391.6,3391.5,1.7889619]
[1735450077485,0.29536,3391.6,3391.5,1.4935919]
[1735450080389,8.28238043,3391.8,3391.4,0.71707]
[1735450080681,0.29537,3391.5,3391.4,0.4217]
[1735450081586,0.29538,3391.3,3391.2,4.62900231]
[1735450082180,0.74068,3391.3,3391.2,4.62900231]
[1735450082683,0.4453,3391.3,3391.1,0.4529]
[1735450082879,0.29539,3391.2,3391.1,0.4529]
[1735450083481,0.29539,3391.2,3391.1,1.7944919]
[1735450084489,0.29539,3391.2,3391.1,1.4990919]
[1735450084687,0.29539,3391.2,3391.1,1.7944919]
[1735450086888,0.29539,3391.2,3391.1,0.7483]
[1735450087190,0.29539,3391.2,3391.1,1.4990919]
[1735450088389,0.29539,3391.2,3391.1,1.7944919]
[1735450105298,0.29539,3391.2,3391.1,0.7483]
[1735450109302,0.29539,3391.2,3391.1,1.7944919]
[1735450111204,4.64838043,3391.4,3391.1,1.4990919]
[1735450111405,4.64838043,3391.4,3391.3,1.3415719]
[1735450112706,4.94373043,3391.7,3391.6,0.29536]
[1735450113306,4.94373043,3391.7,3391.6,1.15906]
[1735450113707,0.29535,3391.7,3391.6,1.15906]
[1735450113907,4.64838043,3391.8,3391.6,0.8637]
[1735450114103,4.94373043,3391.8,3391.7,0.29535]
[1735450115006,0.29535,3391.7,3391.6,1.15905]
[1735450115604,4.94372043,3391.8,3391.7,0.29535]
[1735450115803,4.94372043,3391.8,3391.7,1.3415419]
[1735450116005,4.94372043,3391.8,3391.7,1.7798419]
[1735450116506,4.94372043,3391.8,3391.7,1.3415419]
[1735450117201,0.29534,3391.8,3391.7,1.3415419]
[1735450126012,4.64838043,3391.9,3391.8,0.29534]
[1735450127725,3.2078,3392.0,3391.9,0.29533]
[1735450127919,3.2078,3392.0,3391.9,1.3415219]
[1735450128919,0.2953,3392.3,3391.9,1.0461919]
[1735450129121,0.2953,3392.3,3392.2,1.3414919]
[1735450129322,3.5031,3392.3,3392.2,1.3414919]
[1735450131827,3.2078,3392.3,3392.2,1.3414919]
[1735450133419,3.5031,3392.3,3392.2,1.3414919]
[1735450133924,0.2953,3392.3,3392.2,1.3414919]
[1735450134126,3.5031,3392.3,3392.2,1.3414919]
[1735450137225,3.2078,3392.3,3392.1,0.4347]
[1735450137528,3.2078,3392.3,3391.8,0.29533]
[1735450137529,0.29534,3391.9,3391.8,0.29533]
[1735450138031,0.29533,3392.0,3391.9,0.29532]
[1735450138326,0.29533,3392.0,3391.9,1.3415119]
[1735450139424,0.75523,3392.0,3391.9,1.3415119]
[1735450142032,0.4599,3392.0,3391.9,1.3415119]
[1735450144430,0.75522,3392.0,3391.9,1.3415119]
[1735450145531,0.4599,3392.0,3391.9,1.3415119]
[1735450151338,3.2078,3392.3,3391.9,1.0461919]
[1735450151538,3.2078,3392.3,3392.2,0.2953]
[1735450152139,3.5031,3392.3,3392.2,0.2953]
[1735450152440,1.18039,3392.4,3392.3,0.2953]
[1735450155137,4.38819,3392.4,3392.3,0.2953]
[1735450155840,4.38819,3392.4,3392.1,1.0461919]
[1735450155841,4.0929,3392.4,3392.1,1.0461919]
[1735450156041,0.2953,3392.3,3392.2,0.2953]
[1735450165649,4.64838043,3392.3,3392.1,0.29531]
[1735450165854,4.94368043,3392.3,3392.2,0.2953]
[1735450166353,4.64838043,3392.3,3392.0,0.4438]
[1735450166754,0.29532,3392.0,3391.9,4.62900231]
[1735450166947,0.29532,3392.0,3391.9,0.29533]
[1735450167648,0.73852,3392.0,3391.9,0.29533]
[1735450170262,0.4432,3392.0,3391.8,5.07052618]
[1735450170557,0.29533,3391.9,3391.8,5.36585618]
[1735450171060,0.29533,3391.9,3391.8,1.7792219]
[1735450172055,0.29533,3391.9,3391.8,7.55658351]
[1735450173462,0.29533,3391.9,3391.8,14.50008697]
[1735450175352,0.29533,3391.9,3391.8,7.55658351]
[1735450177661,5.38691043,3392.0,3391.9,0.29533]
[1735450179059,5.38691043,3392.0,3391.9,4.93130892]
[1735450179250,5.38691043,3392.0,3391.9,4.63597892]
[1735450179652,5.38691043,3392.0,3391.9,4.93130892]
[1735450180660,5.38691043,3392.0,3391.9,0.29533]
[1735450181664,5.09158043,3392.0,3391.8,6.11987082]
[1735450181858,5.09158043,3392.0,3391.8,5.36901892]
[1735450181859,0.29533,3391.9,3391.8,5.36901892]
[1735450189170,5.09158043,3392.0,3391.9,0.29533]
[1735450189371,4.64838043,3392.0,3391.9,0.29533]
[1735450189781,4.64838043,3392.1,3391.9,4.63597892]
[1735450190076,4.64838043,3392.1,3392.0,1.7960119]
[1735450191480,4.94369043,3392.2,3392.1,0.29531]
[1735450191677,4.94369043,3392.2,3392.1,0.75451]
[1735450191878,4.94369043,3392.2,3392.1,1.18411]
[1735450193473,4.94369043,3392.2,3392.1,0.8888]
[1735450194076,5.39299043,3392.2,3392.1,0.8888]
[1735450194683,0.74461,3392.2,3392.1,0.4296]
[1735450195678,0.74461,3392.2,3392.0,0.29532]
[1735450195679,0.4493,3392.2,3391.9,4.63597892]
[1735450196188,0.29532,3392.1,3392.0,0.29532]
[1735450196790,0.4493,3392.2,3391.9,4.63597892]
[1735450197082,0.29532,3392.0,3391.9,4.93130892]
[1735450198582,0.29532,3392.0,3391.9,4.63597892]
[1735450199180,0.29533,3391.9,3391.8,6.13637082]
[1735450201889,0.29533,3391.9,3391.8,6.43171082]
[1735450203195,0.29533,3391.9,3391.8,7.57118616]
[1735450204487,0.29533,3391.9,3391.8,14.51468962]
[1735450205889,0.29533,3391.9,3391.8,17.72248962]
[1735450207782,0.29532,3392.0,3391.9,0.29532]
[1735450208887,0.29532,3392.0,3391.9,6.07077426]
[1735450211780,4.64832112,3392.1,3391.9,5.77545426]
[1735450211984,4.64832112,3392.1,3392.0,1.7899119]
[1735450212690,4.64832112,3392.1,3392.0,7.56536616]
[1735450213892,4.64832112,3392.2,3392.0,14.21354962]
[1735450214087,4.64832112,3392.2,3392.1,0.74351]
[1735450214289,4.64832112,3392.2,3392.1,1.20771]
[1735450215197,4.94362112,3392.3,3392.1,5.54880439]
[1735450215492,4.94362112,3392.3,3392.2,0.2953]
[1735450218691,4.64832112,3392.3,3392.2,1.3414919]
[1735450219098,4.94362112,3392.3,3392.2,1.3414919]
[1735450219890,4.64832112,3392.3,3392.2,1.3414919]
[1735450220899,4.94362112,3392.3,3392.2,1.3414919]
[1735450222300,4.64832112,3392.3,3392.2,1.3414919]
[1735450223302,4.94362112,3392.3,3392.2,1.3414919]
[1735450225802,0.2953,3392.2,3392.1,5.84411439]
[1735450226002,1.1915,3392.2,3392.1,5.54880439]
[1735450226298,1.1915,3392.2,3392.1,4.63640439]
[1735450226503,1.6227,3392.2,3392.1,4.63640439]
[1735450227602,0.29531,3392.1,3392.0,5.68259629]
[1735450228502,0.29531,3392.1,3392.0,4.63640439]
[1735450229904,0.29535,3391.7,3391.6,5.97794629]
[1735450231106,0.29535,3391.7,3391.6,1.3415419]
[1735450231505,1.16245,3391.7,3391.6,1.3415419]
[1735450232601,0.29536,3391.6,3391.5,4.63640439]
[1735450232801,0.73086,3391.6,3391.5,4.63640439]
[1735450233506,0.29537,3391.4,3391.3,4.93178439]
[1735450235406,4.64771177,3391.7,3391.3,4.63640439]
[1735450235606,4.64771177,3391.7,3391.6,3.50316]
[1735450236107,4.64771177,3391.7,3391.6,3.92836]
[1735450236301,4.94306177,3391.7,3391.6,0.72056]
[1735450237010,0.29535,3391.7,3391.6,0.72056]
[1735450241008,0.29535,3391.7,3391.6,0.29536]
[1735450253806,0.29536,3391.6,3391.5,1.3415519]
[1735450254011,0.29536,3391.6,3391.5,0.29536]